fUST/lending_fUST_20240826
["ID","MTS","AMOUNT","RATE_DAILY","PERIOD"]
[335964963,1724645448070,-500.0,0.00012349,2]
[335964965,1724645448079,-726.33,0.00012349,2]
[335964967,1724645448088,-530.70952098,0.00012349,2]
[335964969,1724645448098,-677.46,0.00012349,2]
[335964971,1724645448108,-798.84,0.00012349,2]
[335964974,1724645448118,-500.0,0.00012349,2]
[335964975,1724645448127,-500.0,0.00012349,2]
[335964978,1724645448136,-656.44,0.00012349,2]
[335964980,1724645448146,-500.0,0.00012349,2]
[335964982,1724645448155,-1151.91,0.00012349,2]
[335964984,1724645448165,-620.1,0.00012349,2]
[335964986,1724645448175,-666.21,0.00012349,2]
[335964988,1724645448185,-500.0,0.00012349,2]
[335964989,1724645448195,-500.0,0.00012349,2]
[335964991,1724645448205,-500.0,0.00012349,2]
[335964993,1724645448214,-500.0,0.00012349,2]
[335964995,1724645448224,-500.0,0.00012349,2]
[335964997,1724645448234,-1276.08,0.00012349,2]
[335964999,1724645448243,-765.97,0.00012349,2]
[335965001,1724645448253,-500.0,0.00012349,2]
[335965003,1724645448264,-261.11104018,0.00012349,2]
[335965005,1724645448273,-500.0,0.00012349,2]
[335965007,1724645448283,-658.67,0.00012349,2]
[335965009,1724645448294,-500.0,0.00012349,2]
[335965011,1724645448303,-621.86,0.00012349,2]
[335965013,1724645448314,-931.11,0.00012349,2]
[335965015,1724645448325,-688.42,0.00012349,2]
[335965017,1724645448334,-808.32,0.00012349,2]
[335965019,1724645448344,-500.0,0.00012349,2]
[335965021,1724645448354,-500.0,0.00012349,2]
[335965023,1724645448364,-500.0,0.00012349,2]
[335965025,1724645448374,-500.0,0.00012349,2]
[335965027,1724645448383,-500.0,0.00012349,2]
[335965029,1724645448394,-500.0,0.00012349,2]
[335965031,1724645448403,-500.0,0.00012349,2]
[335965033,1724645448412,-500.0,0.00012349,2]
[335965035,1724645448421,-154.74467129,0.00012356,2]
[335965037,1724645448432,-1743.4,0.00012356,2]
[335965039,1724645448441,-1743.4,0.00012357,2]
[335965041,1724645448451,-1743.4,0.00012357,2]
[335965043,1724645448460,-1743.4,0.00012357,2]
[335965046,1724645448470,-1743.4,0.00012357,2]
[335965048,1724645448479,-1743.52343276,0.00012357,2]
[335965049,1724645448489,-500.0,0.00012358,2]
[335965051,1724645448498,-1851.29332,0.00012358,2]
[335965053,1724645448507,-1851.29332,0.00012358,2]
[335965056,1724645448517,-500.0,0.00012373,2]
[335965058,1724645448526,-500.0,0.00012373,2]
[335965060,1724645448535,-504.8239173,0.00012373,2]
[335965062,1724645448544,-500.0,0.00012373,2]
[335965063,1724645448553,-500.0,0.00012373,2]
[335965066,1724645448563,-500.0,0.00012373,2]
[335965068,1724645448572,-153.0,0.000124,2]
[335965069,1724645448582,-207.7743686,0.000124,2]
[335965071,1724645448591,-207.7743686,0.000125,2]
[335965073,1724645448600,-207.7743686,0.000125,2]
[335965075,1724645448610,-207.7743686,0.000125,2]
[335965077,1724645448619,-203.2807981,0.000125,2]
[335965079,1724645448628,-153.0,0.000125,2]
[335965081,1724645448638,-207.7743686,0.000125,2]
[335965084,1724645448647,-153.0,0.000125,2]
[335965085,1724645448656,-2597.51595188,0.00012516,2]
[335965087,1724645448666,-3000.0,0.00012523,2]
[335965089,1724645448675,-500.0,0.00012592,2]
[335965090,1724645448685,-742.68,0.00012592,2]
[335965091,1724645448694,-207.7743686,0.000126,2]
[335965092,1724645448704,-207.7743686,0.000126,2]
[335965093,1724645448713,-207.7743686,0.000126,2]
[335965094,1724645448722,-873.03,0.00012602,2]
[335965095,1724645448732,-8163.02,0.00012602,2]
[335965096,1724645448742,-500.0,0.00012602,2]
[335965097,1724645448751,-737.56,0.00012602,2]
[335965099,1724645448761,-500.0,0.00012602,2]
[335965101,1724645448770,-500.0,0.00012602,2]
[335965103,1724645448779,-665.66,0.00012602,2]
[335965106,1724645448789,-1018.93,0.00012602,2]
[335965107,1724645448798,-12437.77,0.00012602,2]
[335965110,1724645448808,-633.34,0.00012602,2]
[335965112,1724645448817,-678.15,0.00012602,2]
[335965113,1724645448826,-500.0,0.00012612,2]
[335965115,1724645448836,-701.99,0.00012612,2]
[335965118,1724645448846,-647.38,0.00012612,2]
[335965120,1724645448856,-857.91,0.00012612,2]
[335965122,1724645448866,-500.0,0.00012612,2]
[335965124,1724645448875,-645.95,0.00012612,2]
[335965126,1724645448884,-500.0,0.00012612,2]
[335965128,1724645448893,-500.0,0.00012612,2]
[335965130,1724645448902,-500.0,0.00012612,2]
[335965132,1724645448912,-500.0,0.00012612,2]
[335965134,1724645448921,-500.0,0.00012612,2]
[335965135,1724645448931,-500.0,0.00012612,2]
[335965137,1724645448945,-500.0,0.00012612,2]
[335965139,1724645448954,-500.0,0.00012612,2]
[335965142,1724645448964,-541.23,0.00012612,2]
[335965144,1724645448974,-500.0,0.00012612,2]
[335965145,1724645448985,-500.0,0.00012612,2]
[335965148,1724645448994,-500.0,0.00012612,2]
[335965150,1724645449003,-500.0,0.00012612,2]
[335965152,1724645449012,-500.0,0.00012612,2]
[335965154,1724645449021,-928.8,0.00012612,2]
[335965155,1724645449030,-497.52125363,0.00012612,2]
[335965157,1724645449039,-1004.93,0.00012612,2]
[335965160,1724645449049,-500.0,0.00012612,2]
[335965162,1724645449058,-500.0,0.00012612,2]
[335965164,1724645449068,-500.0,0.00012612,2]
[335965166,1724645449078,-565.63,0.00012612,2]
[335965168,1724645449090,-551.81502551,0.00012612,2]
[335965170,1724645449100,-713.19,0.00012612,2]
[335965172,1724645449110,-500.0,0.00012612,2]
[335965174,1724645449119,-500.0,0.00012612,2]
[335965176,1724645449129,-822.12,0.00012612,2]
[335965178,1724645449139,-760.66,0.00012612,2]
[335965180,1724645449149,-564.11,0.00012612,2]
[335965182,1724645449159,-825.52,0.00012612,2]
[335965184,1724645449169,-628.7,0.00012612,2]
[335965186,1724645449179,-942.5,0.00012612,2]
[335965188,1724645449193,-585.68,0.00012612,2]
[335965190,1724645449203,-500.0,0.00012612,2]
[335965192,1724645449212,-501.31729394,0.00012612,2]
[335965195,1724645449222,-500.0,0.00012612,2]
[335965197,1724645449232,-567.0,0.00012612,2]
[335965199,1724645449243,-500.0,0.00012612,2]
[335965201,1724645449252,-500.0,0.00012612,2]
[335965203,1724645449262,-1159.41,0.00012612,2]
[335965205,1724645449272,-500.0,0.00012612,2]
[335965207,1724645449281,-500.0,0.00012612,2]
[335965209,1724645449291,-634.99,0.00012612,2]
[335965211,1724645449301,-635.4,0.00012612,2]
[335965213,1724645449311,-500.0,0.00012612,2]
[335965215,1724645449324,-1089.03,0.00012612,2]
[335965217,1724645449334,-500.0,0.00012612,2]
[335965219,1724645449344,-500.0,0.00012612,2]
[335965221,1724645449354,-975.63,0.00012612,2]
[335965223,1724645449365,-500.0,0.00012612,2]
[335965225,1724645449374,-500.0,0.00012612,2]
[335965227,1724645449384,-510.56,0.00012612,2]
[335965229,1724645449395,-500.0,0.00012612,2]
[335965231,1724645449406,-500.0,0.00012612,2]
[335965234,1724645449416,-500.0,0.00012612,2]
[335965236,1724645449425,-500.0,0.00012612,2]
[335965238,1724645449436,-500.0,0.00012612,2]
[335965240,1724645449446,-500.0,0.00012612,2]
[335965242,1724645449455,-500.0,0.00012612,2]
[335965244,1724645449465,-693.12,0.00012612,2]
[335965246,1724645449474,-500.0,0.00012612,2]
[335965248,1724645449484,-565.97,0.00012612,2]
[335965250,1724645449493,-500.0,0.00012612,2]
[335965252,1724645449502,-500.0,0.00012612,2]
[335965254,1724645449511,-500.0,0.00012612,2]
[335965256,1724645449521,-500.0,0.00012612,2]
[335965258,1724645449530,-904.66,0.00012612,2]
[335965260,1724645449539,-500.0,0.00012612,2]
[335965262,1724645449549,-500.0,0.00012612,2]
[335965264,1724645449558,-500.0,0.00012612,2]
[335965266,1724645449568,-500.0,0.00012612,2]
[335965268,1724645449577,-500.0,0.00012612,2]
[335965270,1724645449586,-500.0,0.00012612,2]
[335965272,1724645449596,-657.64,0.00012612,2]
[335965274,1724645449605,-531.49,0.00012612,2]
[335965276,1724645449614,-500.0,0.00012612,2]
[335965278,1724645449624,-1035.4,0.00012612,2]
[335965280,1724645449633,-500.0,0.00012612,2]
[335965282,1724645449642,-500.0,0.00012612,2]
[335965284,1724645449651,-500.0,0.00012612,2]
[335965286,1724645449660,-500.0,0.00012612,2]
[335965288,1724645449669,-583.67,0.00012612,2]
[335965290,1724645449679,-524.33,0.00012612,2]
[335965292,1724645449688,-226.68280265,0.00012612,2]
[335965294,1724645449697,-500.0,0.00012612,2]
[335965296,1724645449707,-500.0,0.00012612,2]
[335965298,1724645449718,-500.0,0.00012612,2]
[335965300,1724645449728,-500.0,0.00012612,2]
[335965302,1724645449739,-808.42,0.00012612,2]
[335965304,1724645449749,-500.0,0.00012612,2]
[335965306,1724645449758,-500.0,0.00012612,2]
[335965308,1724645449767,-545.62,0.00012612,2]
[335965310,1724645449776,-500.0,0.00012612,2]
[335965312,1724645449786,-500.0,0.00012612,2]
[335965314,1724645449795,-717.4,0.00012612,2]
[335965316,1724645449805,-648.79,0.00012612,2]
[335965317,1724645449813,-803.68,0.00012612,2]
[335965318,1724645449822,-500.0,0.00012612,2]
[335965319,1724645449831,-500.0,0.00012612,2]
[335965320,1724645449840,-12558.9,0.00012612,2]
[335965321,1724645449849,-1524.33,0.00012612,2]
[335965322,1724645449861,-500.0,0.00012612,2]
[335965323,1724645449870,-706.57,0.00012612,2]
[335965324,1724645449879,-500.0,0.00012612,2]
[335965325,1724645449889,-500.0,0.00012612,2]
[335965326,1724645449898,-3330.93,0.00012612,2]
[335965327,1724645449907,-179.5585462,0.00012612,2]
[335965328,1724645449917,-3142.16,0.00012612,2]
[335965329,1724645449926,-500.0,0.00012612,2]
[335965330,1724645449936,-1606.61,0.00012612,2]
[335965332,1724645449946,-297.76240184,0.00012612,2]
[335965334,1724645449957,-500.0,0.00012612,2]
[335965336,1724645449966,-1138.23,0.00012612,2]
[335965338,1724645449977,-939.94,0.00012612,2]
[335965340,1724645449987,-560.33,0.00012612,2]
[335965342,1724645449996,-500.0,0.00012612,2]
[335965344,1724645450007,-500.0,0.00012612,2]
[335965347,1724645450019,-500.0,0.00012612,2]
[335965349,1724645450028,-611.83,0.00012612,2]
[335965351,1724645450038,-620.97,0.00012612,2]
[335965353,1724645450048,-500.0,0.00012612,2]
[335965355,1724645450058,-686.76,0.00012612,2]
[335965357,1724645450067,-500.0,0.00012612,2]
[335965359,1724645450079,-500.0,0.00012612,2]
[335965361,1724645450089,-976.48,0.00012612,2]
[335965363,1724645450098,-863.24,0.00012612,2]
[335965365,1724645450108,-1313.21,0.00012612,2]
[335965367,1724645450118,-1463.07,0.00012612,2]
[335965369,1724645450128,-500.0,0.00012612,2]
[335965371,1724645450138,-792.06,0.00012612,2]
[335965373,1724645450148,-500.0,0.00012612,2]
[335965375,1724645450159,-662.49,0.00012612,2]
[335965377,1724645450169,-500.0,0.00012612,2]
[335965379,1724645450178,-500.0,0.00012612,2]
[335965381,1724645450190,-651.38,0.00012612,2]
[335965383,1724645450201,-1180.48,0.00012612,2]
[335965386,1724645450211,-4146.7,0.00012612,2]
[335965388,1724645450222,-500.0,0.00012612,2]
[335965390,1724645450232,-500.0,0.00012612,2]
[335965392,1724645450241,-931.06,0.00012612,2]
[335965394,1724645450251,-500.0,0.00012612,2]
[335965396,1724645450261,-1089.41,0.00012612,2]
[335965398,1724645450271,-549.09,0.00012612,2]
[335965400,1724645450281,-169.57906181,0.00012612,2]
[335965402,1724645450291,-500.0,0.00012612,2]
[335965404,1724645450303,-590.46,0.00012612,2]
[335965406,1724645450315,-500.0,0.00012612,2]
[335965408,1724645450326,-517.52,0.00012612,2]
[335965410,1724645450337,-4166.39,0.00012612,2]
[335965412,1724645450348,-3358.17,0.00012612,2]
[335965415,1724645450360,-500.0,0.00012612,2]
[335965417,1724645450371,-716.61,0.00012612,2]
[335965419,1724645450380,-651.97,0.00012612,2]
[335965421,1724645450392,-648.22,0.00012612,2]
[335965423,1724645450402,-324.83031538,0.00012612,2]
[335965425,1724645450412,-726.5,0.00012612,2]
[335965427,1724645450422,-34978.0,0.00012612,2]
[335965429,1724645450432,-500.0,0.00012612,2]
[335965431,1724645450443,-500.0,0.00012612,2]
[335965433,1724645450453,-500.0,0.00012612,2]
[335965435,1724645450463,-608.89,0.00012612,2]
[335965437,1724645450474,-500.0,0.00012612,2]
[335965439,1724645450485,-1267.99,0.00012612,2]
[335965441,1724645450495,-500.0,0.00012612,2]
[335965443,1724645450505,-500.0,0.00012612,2]
[335965445,1724645450516,-901.99,0.00012612,2]
[335965448,1724645450527,-500.0,0.00012612,2]
[335965450,1724645450536,-729.85,0.00012612,2]
[335965452,1724645450546,-890.55,0.00012612,2]
[335965454,1724645450556,-500.0,0.00012612,2]
[335965456,1724645450565,-556.34709544,0.00012612,2]
[335965458,1724645450575,-500.0,0.00012612,2]
[335965460,1724645450584,-775.56,0.00012612,2]
[335965462,1724645450595,-874.83,0.00012612,2]
[335965464,1724645450605,-535.28,0.00012612,2]
[335965466,1724645450615,-618.82,0.00012612,2]
[335965468,1724645450626,-559.24,0.00012612,2]
[335965470,1724645450636,-524.35,0.00012612,2]
[335965472,1724645450646,-1320.24,0.00012612,2]
[335965474,1724645450656,-2013.57,0.00012612,2]
[335965476,1724645450666,-947.96,0.00012612,2]
[335965478,1724645450676,-574.56,0.00012612,2]
[335965480,1724645450687,-712.0,0.00012612,2]
[335965483,1724645450697,-500.0,0.00012612,2]
[335965485,1724645450707,-565.4,0.00012612,2]
[335965487,1724645450717,-647.46,0.00012612,2]
[335965489,1724645450727,-676.76,0.00012612,2]
[335965491,1724645450737,-575.35,0.00012612,2]
[335965493,1724645450747,-500.0,0.00012612,2]
[335965495,1724645450757,-1087.34,0.00012612,2]
[335965497,1724645450767,-626.87,0.00012612,2]
[335965499,1724645450777,-500.0,0.00012612,2]
[335965501,1724645450787,-500.0,0.00012612,2]
[335965503,1724645450799,-870.51,0.00012612,2]
[335965505,1724645450809,-608.41,0.00012612,2]
[335965507,1724645450819,-503.83,0.00012612,2]
[335965509,1724645450829,-685.54,0.00012612,2]
[335965511,1724645450838,-814.72,0.00012612,2]
[335965513,1724645450848,-500.0,0.00012612,2]
[335965515,1724645450858,-928.43,0.00012612,2]
[335965517,1724645450868,-591.66,0.00012612,2]
[335965519,1724645450878,-500.0,0.00012612,2]
[335965521,1724645450888,-1482.66,0.00012612,2]
[335965523,1724645450897,-1494.93,0.00012612,2]
[335965525,1724645450907,-500.0,0.00012612,2]
[335965528,1724645450917,-1116.442269,0.00012612,2]
[335965530,1724645450927,-500.0,0.00012612,2]
[335965532,1724645450938,-500.0,0.00012612,2]
[335965534,1724645450948,-1116.442269,0.00012612,2]
[335965536,1724645450958,-500.0,0.00012612,2]
[335965538,1724645450967,-2591.66,0.00012612,2]
[335965540,1724645450976,-572.0,0.00012612,2]
[335965542,1724645450986,-776.42,0.00012612,2]
[335965544,1724645450996,-1851.29332,0.0001262,2]
[335965546,1724645451006,-1851.29332,0.0001262,2]
[335965548,1724645451016,-5628.37,0.0001262,2]
[335965550,1724645451025,-500.0,0.0001262,2]
[335965552,1724645451034,-676.73,0.0001262,2]
[335965555,1724645451046,-10603.96,0.0001262,2]
[335965557,1724645451059,-500.0,0.0001262,2]
[335965559,1724645451069,-754.79,0.0001262,2]
[335965561,1724645451080,-1165.79,0.0001262,2]
[335965563,1724645451091,-724.91,0.0001262,2]
[335965565,1724645451102,-500.0,0.0001262,2]
[335965568,1724645451112,-1116.442269,0.0001262,2]
[335965570,1724645451124,-1116.442269,0.0001262,2]
[335965572,1724645451135,-600.19421187,0.00012621,2]
[335965574,1724645451147,-1000.0,0.00012621,2]
[335965577,1724645451159,-515.05,0.00012621,2]
[335965579,1724645451169,-500.0,0.00012621,2]
[335965580,1724645451181,-644.1,0.00012621,2]
[335965581,1724645451191,-500.0,0.00012621,2]
[335965582,1724645451201,-500.0,0.00012621,2]
[335965583,1724645451211,-798.6,0.00012621,2]
[335965584,1724645451223,-525.94,0.00012621,2]
[335965585,1724645451234,-513.51,0.00012621,2]
[335965586,1724645451246,-1151.09,0.00012621,2]
[335965587,1724645451257,-500.0,0.00012621,2]
[335965588,1724645451266,-798.58,0.00012621,2]
[335965589,1724645451277,-1105.08,0.00012621,2]
[335965590,1724645451287,-309.18,0.00012621,2]
[335965591,1724645451296,-500.0,0.00012621,2]
[335965592,1724645451306,-500.0,0.00012621,2]
[335965594,1724645451320,-1042.06,0.00012621,2]
[335965596,1724645451331,-500.0,0.00012621,2]
[335965598,1724645451340,-1190.98,0.00012621,2]
[335965600,1724645451350,-500.0,0.00012621,2]
[335965602,1724645451361,-1032.35,0.00012621,2]
[335965603,1724645451370,-227.08342233,0.00012621,2]
[335965605,1724645451379,-678.44,0.00012621,2]
[335965607,1724645451389,-872.9,0.00012621,2]
[335965609,1724645451400,-507.93,0.00012621,2]
[335965611,1724645451409,-500.0,0.00012621,2]
[335965613,1724645451419,-958.35,0.00012621,2]
[335965616,1724645451429,-531.67,0.00012621,2]
[335965617,1724645451439,-1084.3,0.00012621,2]
[335965619,1724645451448,-847.27,0.00012621,2]
[335965621,1724645451458,-861.91,0.00012621,2]
[335965623,1724645451467,-733.62,0.00012621,2]
[335965625,1724645451476,-500.0,0.00012621,2]
[335965627,1724645451486,-545.39,0.00012621,2]
[335965629,1724645451496,-500.0,0.00012621,2]
[335965630,1724645451505,-240.03462011,0.00012621,2]
[335965632,1724645451516,-433.30456367,0.00012621,2]
[335965634,1724645451526,-500.0,0.00012621,2]
[335965636,1724645451538,-811.25,0.00012621,2]
[335965638,1724645451549,-1203.84,0.00012621,2]
[335965639,1724645451559,-645.12,0.00012621,2]
[335965641,1724645451568,-1099.71,0.00012621,2]
[335965643,1724645451577,-822.32,0.00012621,2]
[335965645,1724645451586,-1079.64,0.00012621,2]
[335965646,1724645451596,-528.94,0.00012621,2]
[335965647,1724645451607,-822.12,0.00012621,2]
[335965648,1724645451618,-700.57,0.00012621,2]
[335965649,1724645451628,-539.05,0.00012621,2]
[335965650,1724645451640,-548.49,0.00012621,2]
[335965651,1724645451650,-692.07,0.00012621,2]
[335965652,1724645451660,-803.88,0.00012621,2]
[335965653,1724645451670,-1086.52,0.00012621,2]
[335965654,1724645451680,-508.14,0.00012621,2]
[335965655,1724645451690,-500.0,0.00012623,2]
[335965657,1724645451700,-593.89,0.00012623,2]
[335965659,1724645451709,-500.0,0.00012623,2]
[335965661,1724645451718,-545.01,0.00012623,2]
[335965663,1724645451728,-500.0,0.00012623,2]
[335965665,1724645451737,-500.0,0.00012623,2]
[335965667,1724645451747,-500.0,0.00012623,2]
[335965669,1724645451756,-500.0,0.00012623,2]
[335965671,1724645451766,-500.0,0.00012623,2]
[335965673,1724645451775,-500.0,0.00012623,2]
[335965675,1724645451784,-500.0,0.00012623,2]
[335965676,1724645451794,-514.07,0.00012623,2]
[335965678,1724645451804,-500.0,0.00012623,2]
[335965680,1724645451814,-500.0,0.00012623,2]
[335965682,1724645451823,-501.97,0.00012623,2]
[335965683,1724645451832,-500.0,0.00012623,2]
[335965685,1724645451842,-500.0,0.00012623,2]
[335965687,1724645451852,-500.0,0.00012623,2]
[335965689,1724645451862,-500.0,0.00012623,2]
[335965691,1724645451871,-500.0,0.00012623,2]
[335965693,1724645451881,-500.0,0.00012623,2]
[335965695,1724645451891,-500.0,0.00012623,2]
[335965696,1724645451900,-500.0,0.00012623,2]
[335965698,1724645451910,-500.0,0.00012623,2]
[335965700,1724645451919,-724.1,0.00012623,2]
[335965702,1724645451929,-500.0,0.00012623,2]
[335965704,1724645451938,-656.82,0.00012623,2]
[335965705,1724645451948,-500.0,0.00012623,2]
[335965707,1724645451958,-500.0,0.00012623,2]
[335965709,1724645451968,-500.0,0.00012623,2]
[335965711,1724645451978,-500.0,0.00012623,2]
[335965713,1724645451990,-500.0,0.00012623,2]
[335965714,1724645452001,-500.0,0.00012623,2]
[335965715,1724645452010,-500.0,0.00012623,2]
[335965716,1724645452019,-500.0,0.00012623,2]
[335965717,1724645452029,-523.37,0.00012623,2]
[335965718,1724645452040,-619.4,0.00012623,2]
[335965719,1724645452050,-500.0,0.00012623,2]
[335965720,1724645452061,-500.0,0.00012623,2]
[335965721,1724645452071,-500.0,0.00012623,2]
[335965722,1724645452083,-500.0,0.00012623,2]
[335965723,1724645452096,-500.0,0.00012623,2]
[335965724,1724645452107,-565.21,0.00012623,2]
[335965725,1724645452117,-500.0,0.00012623,2]
[335965726,1724645452127,-351.62040845,0.00012623,2]
[335965727,1724645452136,-726.33,0.00012623,2]
[335965728,1724645452147,-677.46,0.00012623,2]
[335965729,1724645452158,-798.84,0.00012623,2]
[335965730,1724645452169,-500.0,0.00012623,2]
[335965731,1724645452180,-500.0,0.00012623,2]
[335965732,1724645452200,-656.44,0.00012623,2]
[335965733,1724645452209,-500.0,0.00012623,2]
[335965734,1724645452218,-1151.91,0.00012623,2]
[335965735,1724645452228,-620.1,0.00012623,2]
[335965736,1724645452237,-666.21,0.00012623,2]
[335965737,1724645452247,-544.7424059,0.00012623,2]
[335965738,1724645452256,-500.0,0.00012623,2]
[335965739,1724645452266,-500.0,0.00012623,2]
[335965740,1724645452276,-500.0,0.00012623,2]
[335965741,1724645452286,-500.0,0.00012623,2]
[335965742,1724645452295,-1276.08,0.00012623,2]
[335965743,1724645452304,-765.97,0.00012623,2]
[335965744,1724645452315,-500.0,0.00012623,2]
[335965745,1724645452326,-500.0,0.00012623,2]
[335965746,1724645452335,-658.67,0.00012623,2]
[335965747,1724645452344,-500.0,0.00012623,2]
[335965748,1724645452354,-1851.29332,0.00012623,2]
[335965749,1724645452364,-1851.29332,0.00012623,2]
[335965750,1724645452376,-621.86,0.00012623,2]
[335965751,1724645452386,-931.11,0.00012623,2]
[335965752,1724645452400,-688.42,0.00012623,2]
[335965753,1724645452411,-808.32,0.00012623,2]
[335965754,1724645452421,-500.0,0.00012623,2]
[335965755,1724645452432,-500.0,0.00012623,2]
[335965756,1724645452447,-500.0,0.00012623,2]
[335965757,1724645452458,-500.0,0.00012623,2]
[335965758,1724645452468,-500.0,0.00012623,2]
[335965759,1724645452478,-500.0,0.00012623,2]
[335965760,1724645452487,-500.0,0.00012623,2]
[335965761,1724645452497,-535.00093446,0.00012629,2]
[335965762,1724645452508,-409.3532644,0.0001263,2]
[335965763,1724645452702,-409.3532644,0.0001263,2]
[335965764,1724645452712,-153.0,0.00012658,2]
[335965765,1724645452721,-2129.48158209,0.00012779,2]
[335965766,1724645452731,-154.74467129,0.00012782,2]
[335965767,1724645452740,-467.5097745,0.00012864,2]
[335965768,1724645452749,-500.0,0.00012866,2]
[335965769,1724645452758,-742.68,0.00012866,2]
[335965770,1724645452767,-873.03,0.00012876,2]
[335965771,1724645452776,-8163.02,0.00012876,2]
[335965772,1724645452787,-500.0,0.00012876,2]
[335965773,1724645452796,-737.56,0.00012876,2]
[335965774,1724645452805,-500.0,0.00012876,2]
[335965775,1724645452816,-500.0,0.00012876,2]
[335965776,1724645452825,-665.66,0.00012876,2]
[335965777,1724645452834,-1018.93,0.00012876,2]
[335965778,1724645452844,-12437.77,0.00012876,2]
[335965779,1724645452853,-633.34,0.00012876,2]
[335965780,1724645452862,-678.15,0.00012876,2]
[335965781,1724645452872,-500.0,0.00012886,2]
[335965782,1724645452881,-701.99,0.00012886,2]
[335965783,1724645452890,-647.38,0.00012886,2]
[335965784,1724645452900,-857.91,0.00012886,2]
[335965785,1724645452909,-500.0,0.00012886,2]
[335965786,1724645452918,-645.95,0.00012886,2]
[335965787,1724645452927,-500.0,0.00012886,2]
[335965788,1724645452937,-500.0,0.00012886,2]
[335965789,1724645452946,-500.0,0.00012886,2]
[335965790,1724645452955,-500.0,0.00012886,2]
[335965791,1724645452965,-500.0,0.00012886,2]
[335965792,1724645452974,-500.0,0.00012886,2]
[335965793,1724645452983,-500.0,0.00012886,2]
[335965794,1724645452992,-500.0,0.00012886,2]
[335965795,1724645453001,-541.23,0.00012886,2]
[335965796,1724645453011,-500.0,0.00012886,2]
[335965797,1724645453020,-500.0,0.00012886,2]
[335965798,1724645453029,-500.0,0.00012886,2]
[335965799,1724645453040,-500.0,0.00012886,2]
[335965800,1724645453049,-500.0,0.00012886,2]
[335965801,1724645453059,-928.8,0.00012886,2]
[335965802,1724645453069,-1004.93,0.00012886,2]
[335965803,1724645453078,-500.0,0.00012886,2]
[335965804,1724645453087,-500.0,0.00012886,2]
[335965805,1724645453097,-500.0,0.00012886,2]
[335965806,1724645453107,-565.63,0.00012886,2]
[335965807,1724645453116,-713.19,0.00012886,2]
[335965808,1724645453126,-500.0,0.00012886,2]
[335965809,1724645453135,-500.0,0.00012886,2]
[335965810,1724645453144,-822.12,0.00012886,2]
[335965811,1724645453154,-760.66,0.00012886,2]
[335965812,1724645453164,-564.11,0.00012886,2]
[335965813,1724645453174,-825.52,0.00012886,2]
[335965814,1724645453183,-628.7,0.00012886,2]
[335965815,1724645453193,-942.5,0.00012886,2]
[335965816,1724645453203,-585.68,0.00012886,2]
[335965817,1724645453212,-500.0,0.00012886,2]